Cogmind - Beta 17 @@@ ROGUE MODE // 2026.07.16 @ 23:00:11 Player: Back to the Scrapyard Result: Destroyed by B-75 Beast with Heavy Plasma Cannon Performance ------------- Evolutions (4) 2000 Regions Visited (6) 1200 Robots Destroyed (47) 235 Value Destroyed (1557) 1557 Prototype IDs (22) 440 Alien Tech Used (0) 0 Bonus (1559) 1559 TOTAL SCORE: 6991 Bonus ------- Follower Combat Kills 759 Registered with UFD 300 Met Optimus in HQ 500 Cogmind --------- Core Integrity 0/850 Matter 220/300 Energy 93/150 System Corruption 0% Temperature Cool (96) Movement Core (350) Ox6 Location -6/Extension Parts ------- > --- POWER (1) -------- Light Angular Momentum Engine > --- PROPULSION (3) --- (None) > --- UTILITY (8) ------ 0b10 Decoder Chip [Skirmisher] Targeting Computer Hacking Suite A0-MCA's Component Scanner > --- WEAPON (3) ------- Compact Ion Cannon Improved Proton Missile Launcher > --- INVENTORY (5) ---- Beamcaster Peak State ------------ > --- POWER ------------ Fission Core > --- PROPULSION ------- Light Treads Flexi-carbon Leg Myomer Leg > --- UTILITY ---------- Cooling System High-capacity Storage Unit 0b10 Decoder Chip [Skirmisher] Targeting Computer Hacking Suite A0-MCA's Component Scanner > --- WEAPON ----------- Gatling Laser Gauss Rifle Flak Gun > --- INVENTORY -------- Light Nuclear Core Light Angular Momentum Engine Matter Compressor Structural Scanner Advanced Signal Interpreter Cloaking Device Improved System Shield Power Bank Beamcaster Compact Ion Cannon Autogun Improved Proton Missile Launcher Mini Grenade Launcher Mace [Rating: 57] Favorites ----------- Power Subdweller Power Source Engine Subdweller Power Source Power Core Fission Core Propulsion Light Treads Treads Light Treads Leg Aluminum Leg Wheel Armored Wheel Utility High-capacity Storage Unit Device Seismic Detector Storage High-capacity Storage Unit Processor A0-MCA's Component Scanner Hackware Hacking Suite Protection Hardened Light Armor Plating Weapon Subdweller Machine Gun Energy Gun Gatling Laser Energy Cannon Subdweller Beam Cannon Ballistic Gun Subdweller Machine Gun Ballistic Cannon Battle Cannon Launcher Grenade Launcher Impact Weapon Mace Build | -11 -10 -10 -9 -9 -6 -6 ------- Run | Yrd Mat Sub Rec Scr Fac Ext Slots Evolved 8 | . . . . . 8 . Power . | . . . . . . . Propulsion 1 | . . . . . 1 . Utility 6 | . . . . . 6 . Weapon 1 | . . . . . 1 . Parts Attached 70 | 8 2 17 8 4 10 21 Power 11 | 1 . 5 1 1 . 3 Engine 10 | 1 . 5 1 1 . 2 Core 1 | . . . . . . 1 Reactor . | . . . . . . . Propulsion 17 | 3 . 3 2 1 1 7 Treads 11 | 1 . 3 1 1 . 5 Leg 5 | 2 . . 1 . . 2 Wheel 1 | . . . . . 1 . Hover . | . . . . . . . Flight . | . . . . . . . Utility 19 | 2 1 3 4 1 6 2 Device 7 | 1 1 . 1 . 2 2 Storage 3 | 1 . 1 1 . . . Processor 3 | . . . . . 3 . Hackware 1 | . . . . . 1 . Protection 5 | . . 2 2 1 . . Artifact . | . . . . . . . Weapon 23 | 2 1 6 1 1 3 9 Energy Gun 2 | . . 1 . . . 1 Energy Cannon 3 | . 1 1 . . . 1 Ballistic Gun 11 | 2 . 2 1 . 1 5 Ballistic Cannon 3 | . . 1 . 1 . 1 Launcher 3 | . . 1 . . 1 1 Special Weapon . | . . . . . . . Impact Weapon 1 | . . . . . 1 . Slashing Weapon . | . . . . . . . Piercing Weapon . | . . . . . . . Special Melee Weapon . | . . . . . . . Unidentified Prototypes . | . . . . . . . Parts Lost 45 | . 3 7 5 . 1 29 Power 5 | . 1 2 . . . 2 Propulsion 15 | . . 2 2 . . 11 Utility 9 | . 1 1 1 . 1 5 Weapon 16 | . 1 2 2 . . 11 Highest Loss Streak 11 | . 1 2 3 . 1 11 To Critical Strikes . | . . . . . . . Average Backups 11 | 3 7 6 7 17 13 14 Power 1 | 1 1 . 1 1 1 1 Propulsion 1 | 1 2 1 . 1 1 1 Utility 5 | . 1 3 3 8 6 5 Weapon 3 | . 2 1 1 5 4 5 Tool/Special . | . . . . . . . Unused Backups 17 | . 1 1 1 4 . 10 Power 2 | . . . . . . 2 Propulsion . | . . . . . . . Utility 6 | . . 1 . . . 5 Weapon 9 | . 1 . 1 4 . 3 Tool/Special . | . . . . . . . Average Slot Usage (%) 92 | . 88 92 93 100 96 82 Engine 10 | . 4 11 14 14 6 1 Treads 20 | . . 26 18 27 13 10 Leg 4 | . 28 1 7 . . 5 Device 5 | . 12 8 4 . 11 5 Storage 11 | . 14 11 14 14 6 5 Processor 4 | . . . . . 19 20 Hackware 1 | . . . . . 4 6 Protection 6 | . . 5 8 14 6 . Energy Cannon 1 | . 5 2 . . . 1 Ballistic Gun 18 | . 22 13 24 23 12 14 Ballistic Cannon 4 | . . 8 . 4 6 1 Peak Build Rating 57 | 7 7 13 15 18 44 57 Average Rating 19 | 4 6 9 13 15 41 46 On Entrance 13 | . 7 7 12 14 18 39 Avg Prop Armor Cover (%) 11 | . . . 9 9 12 12 Naked Turns . | . . . . . . . Heaviest Build 65 | 13 14 28 57 59 65 64 Greatest Support 45 | 20 20 40 40 40 12 45 Greatest Overweight (x) 17 | . . . 5 2 5 17 Average Overweight (x) 1 | . . . 1 1 4 3 Largest Inventory Capacity 35 | 8 8 35 20 20 20 20 Average Capacity 14 | 7 8 7 14 20 20 19 Most Carried 20 | 6 8 8 8 20 19 20 Average Carried 11 | 4 7 6 7 17 13 14 Final Capacity 20 | 8 8 8 20 20 20 5 Final Carried 20 | 4 8 7 6 20 14 1 Class Distribution -------------------- 40% | Mutant 39% | Commander-Mutant 12% | Scavenger-Gunner 5% | Commander-Gunner Dominant Class ---------------- Mutant | -10/Materials Mutant | -10/Subcaves Commander-Mutant | -9/Recycling Commander-Mutant | -9/Scraptown Commander-Gunner | -6/Factory Scavenger-Gunner | -6/Extension Resources | -11 -10 -10 -9 -9 -6 -6 ----------- Run | Yrd Mat Sub Rec Scr Fac Ext Matter Collected 2435 | 195 235 756 205 306 36 702 Remotely . | . . . . . . . Salvage Created 1375 | 14 378 399 151 . 43 390 Parts 93 | 2 34 31 6 . 4 16 Haulers Intercepted . | . . . . . . . Recyclers Shooed 1 | . . . . . . 1 Parts Field Recycled . | . . . . . . . Retrieved Matter . | . . . . . . . Parts Self-Destructed 17 | . . 17 . . . . Prevented . | . . . . . . . Parts Restored . | . . . . . . . Kills | -11 -10 -10 -9 -9 -6 -6 ------- Run | Yrd Mat Sub Rec Scr Fac Ext Combat Hostiles Destroyed 38 | . 10 11 3 . 3 11 Melee 1 | . . 1 . . . . Guns 16 | . 5 5 3 . . 3 Cannons 14 | . 5 4 . . . 5 AOE 5 | . . . . . 3 2 Classes Destroyed 15 | 1 6 3 1 . . 4 Worker 2 | . 2 . . . . . Builder 1 | . . . . . . 1 Tunneler 1 | 1 . . . . . . Recycler 1 | . 1 . . . . . Operator 1 | . 1 . . . . . Turret 1 | . . 1 . . . . Watcher 2 | . 2 . . . . . Swarmer 12 | . 6 2 . . 3 1 Grunt 7 | . 4 . . . . 3 Brawler 1 | . . . . . . 1 Sentry 6 | . . 1 2 . . 3 Hunter 2 | . . . . . . 2 Programmer 1 | . . . 1 . . . Behemoth 1 | . . . . . . 1 Subdweller 8 | . . 8 . . . . Best Kill Streak 3 | 1 3 2 1 . 3 3 Combat Bots Only 3 | . 3 2 1 . 3 3 Max Kills in Single Turn 3 | 1 2 1 1 . 3 2 Gunslinging . | . . . . . . . Exploded 3 | . . . . . 3 2 Melee 1 | . . 1 . . . . Uniques/NPCs Destroyed . | . . . . . . . Combat | -11 -10 -10 -9 -9 -6 -6 -------- Run | Yrd Mat Sub Rec Scr Fac Ext Hostile Shots Fired 513 | . 45 128 37 . 27 276 Missed 164 | . 14 41 8 . 8 93 Hits 349 | . 31 87 29 . 19 183 Projectile 349 | . 31 87 29 . 19 183 AOE 2 | . . . 2 . . . Critical Strikes 5 | . . . 3 . . 2 Damage Taken 5526 | . 393 1212 460 . 385 3076 Core 1109 | . 44 151 37 . 65 812 Absorbed by Shields . | . . . . . . . Core Remaining (%) 53 | 100 . . . 7 . . Volleys Fired 226 | 6 53 94 15 . 9 49 Largest 3 | 2 2 2 2 . 3 3 Hottest 155 | 40 80 113 55 . 86 155 Shots Fired 419 | 12 106 125 20 . 22 134 Gun 252 | 12 79 57 20 . 13 71 Cannon 159 | . 27 66 . . 7 59 Launcher 8 | . . 2 . . 2 4 Special . | . . . . . . . Kinetic 305 | 12 79 84 20 . 20 90 Thermal 106 | . 27 39 . . . 40 Explosive 8 | . . 2 . . 2 4 Electromagnetic . | . . . . . . . Robot Hit Streak 14 | 3 9 10 14 . 7 13 Robot Miss Streak 6 | 4 6 4 1 . 3 4 Penetration Max . | . . . . . . . Secondary Targets . | . . . . . . . Shots Hit Robots 247 | 4 58 52 18 . 13 102 Core Hits 106 | 1 22 18 6 . 8 51 Critical Kills 3 | . . 1 . . . 2 Critical Parts Destroyed . | . . . . . . . Critical Strikes 5 | . . 1 1 . . 3 Meltdown 2 | . . 1 . . . 1 Destroy 2 | . . . 1 . . 1 Blast 1 | . . . . . . 1 Melee Attacks 3 | . . . . . 3 . Impact 3 | . . . . . 3 . Slashing . | . . . . . . . Piercing . | . . . . . . . Sneak Attacks . | . . . . . . . Combat Hostiles . | . . . . . . . Follow-up Attacks . | . . . . . . . Damage Inflicted 5309 | 59 1087 946 346 . 417 2454 Guns 2401 | 59 568 459 323 . 113 879 Cannons 2077 | . 262 484 . . 96 1235 Explosions 805 | . 257 . . . 208 340 Melee . | . . . . . . . Ramming 26 | . . 3 23 . . . Kinetic 2990 | 59 568 652 323 . 209 1179 Thermal 1488 | . 262 291 . . . 935 Explosive 805 | . 257 . . . 208 340 Electromagnetic . | . . . . . . . Impact . | . . . . . . . Slashing . | . . . . . . . Piercing . | . . . . . . . Highest Corruption 3 | . 1 1 3 . . . Average Corruption 1 | . 1 1 2 . . . Corruption Purged . | . . . . . . . Corruption Blocked . | . . . . . . . Effects 49 | . 5 26 18 . . . Message Errors 10 | . 2 6 2 . . . Matter Fused 18 | . 1 9 8 . . . Heat Flow Errors 4 | . . 2 2 . . . Energy Discharges 6 | . 1 4 1 . . . Data Loss (minor) 5 | . . 2 3 . . . Data Loss (major) 2 | . . . 2 . . . Misfires 1 | . . 1 . . . . Alerts 3 | . 1 2 . . . . Overload Shots . | . . . . . . . Overflow Damage 116 | . 41 27 . . . 48 Projectiles 83 | . 8 27 . . . 48 Explosions 33 | . 33 . . . . . Melee . | . . . . . . . Knockbacks 11 | . . 6 2 . . 3 Impact 2 | . . . 2 . . . Kinetic 9 | . . 6 . . . 3 Secondary . | . . . . . . . Self-Inflicted Damage 106 | . 81 . . . 25 . Shots 2 | . 1 . . . 1 . Rammed 2 | . . 1 1 . . . Targets Rammed 5 | . . 1 4 . . . Kicked 3 | . . . 3 . . . Crushed . | . . . . . . . Highest Temperature 454 | . 162 249 215 . 30 454 Average Temperature 107 | . 40 90 56 . 13 180 Received Heat Transfer 1465 | . 93 441 114 . 24 793 Effects 6 | . . . . . . 6 Shutdowns 1 | . . . . . . 1 Energy Bleed 1 | . . . . . . 1 Interference 2 | . . . . . . 2 Matter Decay 1 | . . . . . . 1 Short Circuit 1 | . . . . . . 1 Siege Activations . | . . . . . . . Martial Activations . | . . . . . . . Shielding Activations . | . . . . . . . Robots Disrupted . | . . . . . . . Combat Hostiles . | . . . . . . . Robots Corrupted . | . . . . . . . Combat Hostiles . | . . . . . . . Parts Fried . | . . . . . . . Impact Corruptions . | . . . . . . . Robots Melted 2 | . . 1 . . . 1 Combat Hostiles 2 | . . 1 . . . 1 Parts Melted 3 | . . 2 . . . 1 Heat Transferred 2325 | . 555 384 . . . 1386 Parts Sabotaged . | . . . . . . . Parts Stolen . | . . . . . . . Parts Stripped . | . . . . . . . Power Chain Reactions . | . . . . . . . Alert | -11 -10 -10 -9 -9 -6 -6 ------- Run | Yrd Mat Sub Rec Scr Fac Ext Maximum Alert Level 2 | . . . 1 . 2 1 Low Security (%) 87 | 100 100 . 76 . 63 97 Level 1 10 | . . . 23 . 20 2 Level 2 1 | . . . . . 15 . Level 3 . | . . . . . . . Level 4 . | . . . . . . . Level 5 . | . . . . . . . High Security . | . . . . . . . Max Security . | . . . . . . . Peak Influence 470 | 5 158 . 294 . 470 216 Initial 216 | . 3 . . . . 216 Average 77 | . 96 . 107 . 149 34 Influence Increases 2171 | 5 351 155 562 . 577 521 Destroy 0b10 Robot/C 1080 | . 200 80 260 . 240 300 Destroy 0b10 Robot/NC 130 | 5 30 . 85 . . 10 Destroy Leader 134 | . 44 . . . 50 40 Allied During Kill 417 | . . . 177 . 185 55 Successful Hack 128 | . 30 . 12 . 14 72 Disable Machine 60 | . 45 . . . 15 . Destroy Structure 132 | . 2 . 28 . 73 29 Lose Combat Pursuer 90 | . . 75 . . . 15 Influence Decreases 2163 | . 249 262 340 222 135 955 Entered New Map 502 | . 2 52 . 222 . 226 Time Decay 1156 | . 217 180 340 . 105 314 Lost Part 260 | . 30 30 . . 10 190 Lost Ally 245 | . . . . . 20 225 Squads Dispatched 5 | . 1 . . . 1 3 Investigation 1 | . . . . . . 1 Extermination . | . . . . . . . Reinforcement 4 | . 1 . . . 1 2 Assault . | . . . . . . . Garrison . | . . . . . . . Intercept . | . . . . . . . Searches Triggered . | . . . . . . . Construction Impeded 2 | . . . . . 1 1 Haulers Reinforced . | . . . . . . . Active Scanning Responses . | . . . . . . . Cargo Convoy Interrupts . | . . . . . . . Stealth | -11 -10 -10 -9 -9 -6 -6 --------- Run | Yrd Mat Sub Rec Scr Fac Ext Distress Signals 3 | . 3 . . . . . Communications Jammed . | . . . . . . . Distress Signals . | . . . . . . . Times Spotted 78 | . 20 21 13 . 4 20 Peak Tracking Total 6 | . 5 6 5 . 3 5 Tactical Retreats 4 | . . 3 . . . 1 Traps | -11 -10 -10 -9 -9 -6 -6 ------- Run | Yrd Mat Sub Rec Scr Fac Ext Traps Triggered 7 | . 1 4 . . . 2 Indirectly . | . . . . . . . Trap Hack Attempts . | . . . . . . . Triggered . | . . . . . . . Disarmed . | . . . . . . . Reprogrammed . | . . . . . . . Reused . | . . . . . . . Traps Extracted . | . . . . . . . Installed . | . . . . . . . Triggered . | . . . . . . . Machines | -11 -10 -10 -9 -9 -6 -6 ---------- Run | Yrd Mat Sub Rec Scr Fac Ext Machines Disabled 6 | . 3 2 . . 1 . Max in Single Turn 1 | . 1 1 . . . . Machines Repaired . | . . . . . . . Machines Dismantled . | . . . . . . . Machines Sabotaged . | . . . . . . . Overloaded Fab Kills . | . . . . . . . Hacking | -11 -10 -10 -9 -9 -6 -6 --------- Run | Yrd Mat Sub Rec Scr Fac Ext Machines Accessed 20 | . 1 2 5 3 2 7 Terminals 15 | . 1 . 5 . 2 7 Fabricators . | . . . . . . . Repair Stations . | . . . . . . . Recycling Units . | . . . . . . . Scanalyzers . | . . . . . . . Garrison Access . | . . . . . . . Total Hacks 64 | . 2 10 6 25 4 17 Successful 51 | . 2 10 5 25 2 7 Failed 13 | . . . 1 . 2 10 Catastrophic . | . . . . . . . Database Lockouts . | . . . . . . . Manual 23 | . 2 . 6 . 2 13 Terminals 29 | . 2 . 6 . 4 17 Fabricators . | . . . . . . . Repair Stations . | . . . . . . . Recycling Units . | . . . . . . . Scanalyzers . | . . . . . . . Garrison Access . | . . . . . . . Terminal Hacks 39 | . . 10 . 25 2 2 Record 28 | . . 9 . 19 . . Robot Analysis 6 | . . . . 6 . . Open Door 3 | . . . . . 1 2 Branch Access Points 1 | . . . . . 1 . Proto ID Catalog 1 | . . 1 . . . . Fabricator Hacks . | . . . . . . . Repair Station Hacks . | . . . . . . . Recycling Unit Hacks . | . . . . . . . Scanalyzer . | . . . . . . . Garrison Access Hacks . | . . . . . . . Unauthorized Hacks 12 | . 2 . 5 . . 5 Terminals 12 | . 2 . 5 . . 5 Operators 1 | . 1 . . . . . Skim 11 | . 1 . 5 . . 5 Fabricators . | . . . . . . . Repair Stations . | . . . . . . . Recycling Units . | . . . . . . . Scanalyzers . | . . . . . . . Garrison Access . | . . . . . . . Data Cores Recovered . | . . . . . . . Used . | . . . . . . . Hacking Detections 6 | . 1 . 1 . . 4 Full Trace Events 1 | . . . . . . 1 Feedback Events . | . . . . . . . Feedback Blocked . | . . . . . . . Robot Schematics Acquired . | . . . . . . . Robots Built . | . . . . . . . Authchips . | . . . . . . . Time . | . . . . . . . Total Robot Build Rating . | . . . . . . . Part Schematics Acquired . | . . . . . . . Parts Built . | . . . . . . . Authchips . | . . . . . . . Time . | . . . . . . . Total Part Build Rating . | . . . . . . . Part Studies Acquired . | . . . . . . . Parts Repaired . | . . . . . . . Time . | . . . . . . . Parts Recycled . | . . . . . . . Recycled Matter . | . . . . . . . Retrieved Matter . | . . . . . . . Retrieved Components . | . . . . . . . Parts Scanalyzed . | . . . . . . . Part Schematics Acquired . | . . . . . . . Parts Damaged . | . . . . . . . Bothacking | -11 -10 -10 -9 -9 -6 -6 ------------ Run | Yrd Mat Sub Rec Scr Fac Ext Used RIF Installer . | . . . . . . . Robots Hacked . | . . . . . . . Non-combat . | . . . . . . . Combat . | . . . . . . . Robot Hacks Applied . | . . . . . . . Relay Couplers Released . | . . . . . . . Fabnet Peak Effective % . | . . . . . . . Robots Rewired 19 | . . . 15 . . 4 Allies Hacked . | . . . . . . . Hacks Repelled . | . . . . . . . Allies | -11 -10 -10 -9 -9 -6 -6 -------- Run | Yrd Mat Sub Rec Scr Fac Ext Total Allies 22 | . . . 15 . . 7 Largest Group 13 | . . . 13 13 13 12 Highest-Rated Group 223 | . . . 223 223 223 185 Highest-Rated Ally 39 | . . . 34 34 34 39 Initial UFD Resources 23 | . . . . . 23 23 Total Orders 2 | . . . . . . 2 STAY 1 | . . . . . . 1 FOLLOW 1 | . . . . . . 1 Ally Attacks 105 | . . . 19 . 37 49 Total Damage 4104 | . . . 1481 . 1522 1101 Kills 31 | . . . 16 . 9 6 Allies Corrupted . | . . . . . . . Allies Melted . | . . . . . . . Intel | -11 -10 -10 -9 -9 -6 -6 ------- Run | Yrd Mat Sub Rec Scr Fac Ext Active Infowar (turns) 3426 | 2 499 1790 467 . 406 262 Seismic 3269 | 2 499 1790 467 . 401 110 Decoding 665 | . . . . . 403 262 Cloaking 72 | . . . . . 72 . Jamming 253 | . . . . . 253 . Robot Analysis Total 6 | . . . . 6 . . Derelict Logs Recovered 2 | . . 1 . 1 . . Drone Launches . | . . . . . . . Drone Recoveries . | . . . . . . . Decoded 0b10 Intel 15 | . . . . . 12 3 Garrisons 1 | . . . . . 1 . Patrols 8 | . . . . . 6 2 Reinforcements 1 | . . . . . 1 . Guards 5 | . . . . . 4 1 Exploration | -11 -10 -10 -9 -9 -6 -6 ------------- Run | Yrd Mat Sub Rec Scr Fac Ext Turns Passed 9352 | 97 546 2884 1316 2459 408 1642 Spaces Moved 4038 | 47 283 1583 463 998 199 465 Core 32 | 11 . . 5 . . 16 Treads 2736 | . . 1479 218 968 . 71 Legs 1006 | 36 283 104 240 30 . 313 Wheels 264 | . . . . . 199 65 Hover . | . . . . . . . Flight . | . . . . . . . Fastest Speed 50 | 50 120 120 160 240 150 150 Average Speed 199 | 103 120 157 223 241 164 302 Slowest Speed 900 | 120 120 160 300 280 165 900 Overloaded Moves . | . . . . . . . Propulsion Burnouts . | . . . . . . . Robots Hopped . | . . . . . . . Potential Cave-ins . | . . . . . . . Cave-ins Triggered . | . . . . . . . Exploration Rate (%) 47 | 4 45 81 86 78 7 32 Regions Visited 6 Branch Regions 4 Pre-discovered Areas 4 | . . 2 1 1 . . Known Exits Taken 1 | . . . . . 1 . Unknown Exits Taken 5 | 1 1 1 1 1 . . Scrap Searched 13 | . . 3 . 10 . . Spaces Dug 3 | . . . . . 3 . Terrain Destroyed 68 | . . 19 . . 15 34 Melee 3 | . . . . . 3 . Projectile 10 | . . 9 . . . 1 AOE 55 | . . 10 . . 12 33 Terrain Rammed . | . . . . . . . Walls Destroyed . | . . . . . . . Machines Disabled . | . . . . . . . Actions | -11 -10 -10 -9 -9 -6 -6 --------- Run | Yrd Mat Sub Rec Scr Fac Ext Total 4940 | 81 383 1845 722 1053 255 601 Wait 275 | 10 38 112 59 25 25 6 Move 4032 | 46 282 1582 462 997 198 465 Hop . | . . . . . . . Pick Up 85 | 9 6 17 7 20 3 23 Fast Attach 8 | 2 1 4 1 . . . Attach 53 | 5 1 11 4 1 9 22 Detach . | . . . . . . . Swap 32 | 3 1 10 4 3 7 4 Drop 32 | . 1 14 4 7 1 5 Fire 226 | 6 53 94 15 . 9 49 Melee 3 | . . . . . 3 . Ram . | . . . . . . . Kick 3 | . . . 3 . . . Crush 2 | . . 1 1 . . . Escape Stasis 4 | . . . . . . 4 Rewire 185 | . . . 162 . . 23 Trap . | . . . . . . . Miscellaneous . | . . . . . . . Route ------- -11/Scrapyard -10/Materials -10/Subcaves (discovered 3 exits: [*Mat x2] / *Rec) -9/Recycling (discovered 2 exits: [*Fac] / *Scr) -9/Scraptown (discovered 2 exits: *Fac x2) -6/Factory (discovered 4 exits: Low x2 / *Ext x2) -6/Extension History --------- Turn | Location | Event 11 | -11/Scrapyard | Discovered new exit (range 16) 98 | -11/Scrapyard | Entered Materials 314 | -10/Materials | Build established: Mutant 622 | -10/Materials | Discovered new exit (range 13) 644 | -10/Materials | Entered Subcaves 1035 | -10/Subcaves | Discovered new exit (range 11) 1355 | -10/Subcaves | Shifting Twisted Machinery released Flamer 1515 | -10/Subcaves | Disturbed a concealed Subdweller 1591 | -10/Subcaves | A swath of the cavern ceiling suddenly collapsed 1619 | -10/Subcaves | Shifting Twisted Machinery released Battle Rifle 1676 | -10/Subcaves | Shifting Twisted Machinery released Sub. Beam Cannon 1939 | -10/Subcaves | Learned location of Zion (-6) 1939 | -10/Subcaves | Met a Zionite searching for "candidates" 1987 | -10/Subcaves | Discovered new exit (range 13) 2063 | -10/Subcaves | Core integrity fell below 50% 2159 | -10/Subcaves | A swath of the cavern ceiling suddenly collapsed 2408 | -10/Subcaves | Visited Clippyterm 2413 | -10/Subcaves | Learned location of Section 7 (-3) 2467 | -10/Subcaves | Learned 4 Materials zone layouts 2588 | -10/Subcaves | Discovered new exit (range 13) 2842 | -10/Subcaves | Visited 4L-MR0's lab 3287 | -10/Subcaves | Found Power Bank 3528 | -10/Subcaves | Entered Recycling 3529 | -9/Recycling | Met a Zionite searching for Scraptown 3928 | -9/Recycling | Core integrity fell below 20% 3962 | -9/Recycling | Lost 3 parts (2n1w) 4038 | -9/Recycling | Build established: Commander-Mutant 4200 | -9/Recycling | Discovered new exit (range 16) 4683 | -9/Recycling | Learned Storage security intel 4711 | -9/Recycling | Learned 2 Materials zone layouts 4720 | -9/Recycling | Scanned before Scraplab entrance 4737 | -9/Recycling | Learned location of 2 exits from Materials 4738 | -9/Recycling | Learned Storage trap positions 4762 | -9/Recycling | Entered Scraplab 4780 | -9/Recycling | Learned location of 2 exits from Materials 4785 | -9/Recycling | Discovered new exit (range 2) 4844 | -9/Recycling | Entered Scraptown 4844 | -9/Scraptown | Accompanied by 13 allies 4844 | -9/Scraptown | System corruption cleaned by C-Scrubber 4944 | -9/Scraptown | Heard Great Nut preacher, LISTEN AND RECITE! 5562 | -9/Scraptown | Scanned Subdweller tech in exchange for log data 5569 | -9/Scraptown | Learned location of Warlord (-4) 5600 | -9/Scraptown | Discovered new exit (range 9) 5776 | -9/Scraptown | Visited Bundlers 5929 | -9/Scraptown | Visited The Evicted 6011 | -9/Scraptown | Visited Spacefarers 6039 | -9/Scraptown | Visited Awakened 6083 | -9/Scraptown | Visited Comm Corps 6188 | -9/Scraptown | Visited Symbiants 6263 | -9/Scraptown | Visited UFD Registry 6263 | -9/Scraptown | Registered with UFD as "Monoslicer" 6337 | -9/Scraptown | Visited Scrapoid Research Area 6409 | -9/Scraptown | Visited Derelict Rescue Squad 6452 | -9/Scraptown | Visited Infowarlord's Domain 6512 | -9/Scraptown | Visited Science Testing Area 6543 | -9/Scraptown | Visited DA-N13 Charitable Foundation 6565 | -9/Scraptown | Found DCF Scrap (29 items) 6633 | -9/Scraptown | Visited Analyses Database 6808 | -9/Scraptown | Visited Chapter 10 6841 | -9/Scraptown | Visited A0-MCA Data Center 6856 | -9/Scraptown | Given a B rating by A0-MCA 6864 | -9/Scraptown | Found A0-MCA's Component Scanner 6917 | -9/Scraptown | Visited Scrap Suit Storage 7138 | -9/Scraptown | Met Optimus 7138 | -9/Scraptown | Accepted into 0bPrime 7275 | -9/Scraptown | Discovered new exit (range 3) 7303 | -9/Scraptown | Entered Factory 7303 | -6/Factory | Accompanied by 13 allies 7303 | -6/Factory | Evolved 8 slots: Propulsion x1, Utility x6, Weapon x1 7386 | -6/Factory | Identified exit to Lower Caves 7386 | -6/Factory | Identified exit to Extension 7567 | -6/Factory | Spotted B-75 Beast 7583 | -6/Factory | Allies destroyed B-75 Beast 7711 | -6/Factory | Entered Extension 7711 | -6/Extension | Accompanied by 12 allies 7858 | -6/Extension | Lost 3 parts (2u1w) 7899 | -6/Extension | Lost 3 parts (3n) 7899 | -6/Extension | Lost 8 allies 7906 | -6/Extension | Build established: Commander-Gunner 7990 | -6/Extension | Lost 3 allies 8188 | -6/Extension | Lost 7 parts (1p4n1u1w) 8241 | -6/Extension | Lost 3 parts (3w) 8500 | -6/Extension | Build established: Scavenger-Gunner 8831 | -6/Extension | Rescued a captive Derelict 9164 | -6/Extension | Rescued a captive Derelict 9165 | -6/Extension | Rescued a captive Derelict 9200 | -6/Extension | Spotted B-75 Beast 9236 | -6/Extension | Spotted B-75 Beast 9257 | -6/Extension | Lost 3 allies 9284 | -6/Extension | Core integrity fell below 50% 9340 | -6/Extension | Destroyed B-75 Beast 9345 | -6/Extension | Core integrity fell below 20% 9353 | -6/Extension | Destroyed by B-75 Beast with Heavy Plasma Cannon Last Messages --------------- 09325_ Flak Gun destroyed. 09326_ U-05 Engineer builds a Wall. 09331_ Gatling Laser destroyed. 09332_ U-05 Engineer builds a Wall. 09334_ Autogun destroyed. 09336_ ALERT: Construction progress impeded, dispatching reinforcements to local area. 09336_ Critical hit (Meltdown: +310). 09336_ Fission Core destroyed. 09337_ U-05 Engineer destroyed. 09340_ B-75 Beast destroyed. 09340_ Y-54 Guardian destroyed. 09341_ Myomer Leg destroyed. 09341_ Cooling System destroyed. 09346_ Flexi-carbon Leg destroyed. 09348_ The unstable cave ceiling collapses. 09349_ Mni. Grenade Launcher destroyed. 09349_ Acquired Lgt. Angular Momentum Engine. 09352_ The unstable cave ceiling collapses. 09352_ 34 Matter crushed. Map ----- +----------------------------------------------------+ | | | | | | | | | | | | | | | | | | | | | | | | | | | | | | | | | | | | | ?????????????????????????????????????????????????? | | ?????????????????????????????????????????????????? | | ???????????????????????????????#?#???????????????? | | ######?????????????????????### # ##??########????? | | #????????#######?????? ##?# #????? | | ########## #??####% * #?# ** #????? | | % " ####;#; [#= ### #????? | | % " "T u %!/!@ ! *% + *% #????? | | %/% "%" ######! Y / # "" #????? | | ########## #????#*%BB | ## % #????? | | % #????????#######????# BB ########+#????? | | #+#+########?????????????# #????? | | ! #?????????????# # ;;;#####" #????? | | #?????????????# ###########????# #????? | | """"""" #?????????????# #??????????????# #????? | | """"""" ] ############### #??????????????# #????? | | + #??????????????# #????? | | """"""" #################??????????????# #????? | | """"""" #????????????????????????????### "????? | | !#??????????????????????????### # "????? | | ##"T"#"T"###??????????????????????????# " "????? | | ##"""#"""#????????????????????????????# #????? | | ##########????????????????????????????###T" #????? | | ????????????????????????????????????????##" "????? | | ?????????????????????????????????????????#" "????? | | ?????????????????????????????????????????#" "????? | | ?????????????????????????????????????????#" "????? | | ?????????????????????????????????????????#" #????? | | ?????????????????????????????????????????#" #????? | | ?????????????????????????????????????????#" #????? | | ?????????????????????????????????????????#"%#????? | | ??????????????????????????????????????????#%#????? | +----------------------------------------------------+ Best States ------------- Heat Dissipation 59 Energy Generation 18 Energy Capacity 310 Matter Stores 300 Matter Capacity 300 Sight Range 16 Terrain Scan Density 10 Jamming Range 12 Cloak Strength 2 Armor Coverage 800 Evasion (%) 55 Targeting Accuracy 5 Recoil Reduction 2 Offensive Hacking 10 Item Schematics ----------------- None Robot Schematics ------------------ None Fabricated ------------ Nothing Repaired ---------- Nothing Studied --------- None Alien Tech Used ----------------- None Achievements -------------- None Challenges ------------ None Game ------ Seed InsulationSupersonicBay Manual? 0 Play Time 00:53:15 Cumulative 395.2 hours Start 2026.07.16 @ 22:07:14 End 2026.07.16 @ 23:00:11 Sessions 3 Manual Loads 0 Difficulty Rogue Special Mode None Game No. 541 Rogue 523 Adventurer 18 Explorer 0 Win Type - Total 1 Types 1/0/0/0/0/0/0/0/0/0 Lore% 56 Gallery% 59 Achievement% 47 Wizard Run 0 Options --------- Layout 1 ASCII 0 Keyboard 0 Movement Mouse Keybinds 0 Fullscreen 1 Font 24/Smallcaps Map View 50x40 Zoom Use 0% Tactical HUD 1 Map Filters NONE Filters NONE Steam 1 RUN: 8f6b591c-6eb4-43e5-b31f-8a4abb8a2af6